[Event "Late-Titled-Tuesday-Blitz-March-05-2024"]
[Site "Chess.com"]
[Date "2024.03.05"]
[Round "8"]
[White "santosalberto1987"]
[Black "OverallStranger"]
[Result "1-0"]
[WhiteElo "2551"]
[BlackElo "2380"]
[TimeControl "180+1"]
[EndTime "15:20:20 PST"]
[Termination "santosalberto1987 won by resignation"]

1. e4 {[%clk 0:02:54.9]} 1... c5 {[%clk 0:03:00.1]} 2. Nf3 {[%clk 0:02:54.8]}
2... Nc6 {[%clk 0:02:59.4]} 3. Nc3 {[%clk 0:02:54.5]} 3... g6 {[%clk 0:02:59.9]}
4. d4 {[%clk 0:02:54.5]} 4... cxd4 {[%clk 0:03:00.8]} 5. Nxd4 {[%clk 0:02:55]}
5... Bg7 {[%clk 0:03:01.5]} 6. Be3 {[%clk 0:02:55]} 6... Nf6 {[%clk 0:03:01]} 7.
Bc4 {[%clk 0:02:55.1]} 7... O-O {[%clk 0:03:01]} 8. Bb3 {[%clk 0:02:54.9]} 8...
Re8 {[%clk 0:02:59.7]} 9. f3 {[%clk 0:02:53.2]} 9... e6 {[%clk 0:02:59.2]} 10.
f4 {[%clk 0:02:53.5]} 10... d6 {[%clk 0:02:58.9]} 11. Ndb5 {[%clk 0:02:49.2]}
11... Bf8 {[%clk 0:02:55.2]} 12. Qf3 {[%clk 0:02:47]} 12... a6 {[%clk 0:02:55]}
13. Nd4 {[%clk 0:02:46.6]} 13... Bd7 {[%clk 0:02:49.4]} 14. O-O-O {[%clk
0:02:46]} 14... Nxd4 {[%clk 0:02:45.8]} 15. Bxd4 {[%clk 0:02:45.8]} 15... Bc6
{[%clk 0:02:46.5]} 16. g4 {[%clk 0:02:41.1]} 16... e5 {[%clk 0:02:23.4]} 17.
fxe5 {[%clk 0:02:39]} 17... dxe5 {[%clk 0:02:22]} 18. Bxe5 {[%clk 0:02:32.8]}
18... Bh6+ {[%clk 0:02:08.4]} 19. Kb1 {[%clk 0:02:32.5]} 19... Rxe5 {[%clk
0:02:08.2]} 20. Rxd8+ {[%clk 0:02:31.6]} 20... Rxd8 {[%clk 0:02:08.7]} 21. Qxf6
{[%clk 0:02:30.5]} 21... Rde8 {[%clk 0:02:09.4]} 22. Bxf7+ {[%clk 0:02:28.4]}
1-0

[Event "Late-Titled-Tuesday-Blitz-March-05-2024"]
[Site "Chess.com"]
[Date "2024.03.05"]
[Round "8"]
[White "Ze-Pequeno"]
[Black "shirovin"]
[Result "1-0"]
[WhiteElo "2311"]
[BlackElo "2068"]
[TimeControl "180+1"]
[EndTime "15:21:45 PST"]
[Termination "Ze-Pequeno won by checkmate"]

1. e4 {[%clk 0:02:54.9]} 1... c5 {[%clk 0:02:58.9]} 2. Nf3 {[%clk 0:02:54.8]}
2... d6 {[%clk 0:02:59.3]} 3. d4 {[%clk 0:02:55.1]} 3... cxd4 {[%clk 0:02:59.9]}
4. Nxd4 {[%clk 0:02:55.9]} 4... Nf6 {[%clk 0:02:59.8]} 5. Nc3 {[%clk 0:02:56.5]}
5... a6 {[%clk 0:03:00.4]} 6. Bg5 {[%clk 0:02:56.5]} 6... e6 {[%clk 0:02:59.7]}
7. f4 {[%clk 0:02:56.7]} 7... Be7 {[%clk 0:03:00]} 8. Qf3 {[%clk 0:02:56.8]}
8... Qc7 {[%clk 0:02:59.6]} 9. O-O-O {[%clk 0:02:56]} 9... Nbd7 {[%clk
0:02:59.2]} 10. g4 {[%clk 0:02:55.8]} 10... h6 {[%clk 0:02:59.1]} 11. Bh4 {[%clk
0:02:53.4]} 11... g5 {[%clk 0:02:57.6]} 12. Bg3 {[%clk 0:02:47.7]} 12... b5
{[%clk 0:02:43.3]} 13. fxg5 {[%clk 0:02:40.8]} 13... hxg5 {[%clk 0:02:40]} 14.
Bxb5 {[%clk 0:02:35.8]} 14... axb5 {[%clk 0:02:36]} 15. Ndxb5 {[%clk 0:02:34.5]}
15... Qa5 {[%clk 0:01:43]} 16. Bxd6 {[%clk 0:02:30.5]} 16... Bxd6 {[%clk
0:01:33.4]} 17. Nxd6+ {[%clk 0:02:29.1]} 17... Ke7 {[%clk 0:01:32.6]} 18. Rhf1
{[%clk 0:02:28.3]} 18... Ba6 {[%clk 0:01:23.6]} 19. Nxf7 {[%clk 0:02:11.2]}
19... Kxf7 {[%clk 0:01:11.7]} 20. Rxd7+ {[%clk 0:02:08.2]} 20... Kg6 {[%clk
0:01:02.3]} 21. Qxf6# {[%clk 0:02:06.7]} 1-0

[Event "Late-Titled-Tuesday-Blitz-March-05-2024"]
[Site "Chess.com"]
[Date "2024.03.05"]
[Round "8"]
[White "venturov"]
[Black "Pachonpower"]
[Result "1-0"]
[WhiteElo "2470"]
[BlackElo "2297"]
[TimeControl "180+1"]
[EndTime "15:22:17 PST"]
[Termination "venturov won by resignation"]

1. e4 {[%clk 0:03:00.9]} 1... g6 {[%clk 0:02:54.4]} 2. d4 {[%clk 0:02:53.2]}
2... Bg7 {[%clk 0:02:55.1]} 3. c4 {[%clk 0:02:51.5]} 3... d6 {[%clk 0:02:55.1]}
4. Nc3 {[%clk 0:02:49.9]} 4... Nf6 {[%clk 0:02:55.1]} 5. f3 {[%clk 0:02:48.1]}
5... O-O {[%clk 0:02:55.2]} 6. Be3 {[%clk 0:02:48]} 6... Re8 {[%clk 0:02:55.2]}
7. Qd2 {[%clk 0:02:46.8]} 7... a5 {[%clk 0:02:54.7]} 8. Bd3 {[%clk 0:02:44]}
8... a4 {[%clk 0:02:54.7]} 9. Bc2 {[%clk 0:02:42.8]} 9... a3 {[%clk 0:02:54.8]}
10. b3 {[%clk 0:02:40.6]} 10... e5 {[%clk 0:02:54]} 11. Nge2 {[%clk 0:02:37.6]}
11... exd4 {[%clk 0:02:51.7]} 12. Nxd4 {[%clk 0:02:38]} 12... Nc6 {[%clk
0:02:51.5]} 13. Rd1 {[%clk 0:02:37.2]} 13... Ne5 {[%clk 0:02:44.8]} 14. O-O
{[%clk 0:02:21.7]} 14... Qe7 {[%clk 0:02:38.3]} 15. Ndb5 {[%clk 0:02:19.9]}
15... Rd8 {[%clk 0:02:32.8]} 16. Bg5 {[%clk 0:02:14.3]} 16... Be6 {[%clk
0:02:29.6]} 17. h3 {[%clk 0:02:10.5]} 17... Rd7 {[%clk 0:02:10.6]} 18. Rfe1
{[%clk 0:01:58.5]} 18... Nc6 {[%clk 0:02:04.3]} 19. Nd5 {[%clk 0:01:52.6]} 19...
Qd8 {[%clk 0:02:03.4]} 20. Qf4 {[%clk 0:01:27.1]} 20... Bxd5 {[%clk 0:01:45.7]}
21. exd5 {[%clk 0:01:26.2]} 21... Ne5 {[%clk 0:01:46]} 22. Qh4 {[%clk
0:01:19.8]} 22... h6 {[%clk 0:01:33.7]} 23. Bxh6 {[%clk 0:01:17.7]} 23... Bxh6
{[%clk 0:01:34.6]} 24. Qxh6 {[%clk 0:01:18.2]} 24... Qf8 {[%clk 0:01:34.3]} 25.
Qxf8+ {[%clk 0:01:15.6]} 25... Rxf8 {[%clk 0:01:35.2]} 26. f4 {[%clk 0:01:16.1]}
1-0

[Event "Late-Titled-Tuesday-Blitz-March-05-2024"]
[Site "Chess.com"]
[Date "2024.03.05"]
[Round "8"]
[White "Bilan_Danila"]
[Black "szachmistrz2500"]
[Result "1-0"]
[WhiteElo "2542"]
[BlackElo "2427"]
[TimeControl "180+1"]
[EndTime "15:22:24 PST"]
[Termination "Bilan_Danila won by resignation"]

1. d4 {[%clk 0:02:52]} 1... Nf6 {[%clk 0:02:56.9]} 2. Nf3 {[%clk 0:02:43.9]}
2... e6 {[%clk 0:02:47.3]} 3. g3 {[%clk 0:02:43.4]} 3... c5 {[%clk 0:02:46.4]}
4. Bg2 {[%clk 0:02:44.3]} 4... cxd4 {[%clk 0:02:46.1]} 5. Nxd4 {[%clk
0:02:45.2]} 5... d5 {[%clk 0:02:44.5]} 6. c4 {[%clk 0:02:45.4]} 6... dxc4 {[%clk
0:02:35.1]} 7. Qa4+ {[%clk 0:02:43.9]} 7... Nbd7 {[%clk 0:02:33.9]} 8. Qxc4
{[%clk 0:02:42.2]} 8... a6 {[%clk 0:02:34.3]} 9. O-O {[%clk 0:02:38.4]} 9... Be7
{[%clk 0:02:31.1]} 10. Rd1 {[%clk 0:02:19.2]} 10... O-O {[%clk 0:02:30.3]} 11.
Nc3 {[%clk 0:02:17.2]} 11... Ne5 {[%clk 0:02:21.6]} 12. Qb3 {[%clk 0:02:14]}
12... Qa5 {[%clk 0:02:08.9]} 13. Bf4 {[%clk 0:01:52.7]} 13... Ng6 {[%clk
0:02:07.7]} 14. Bxb7 {[%clk 0:01:45]} 14... Bxb7 {[%clk 0:02:00.8]} 15. Qxb7
{[%clk 0:01:41.9]} 15... Nxf4 {[%clk 0:02:00.5]} 16. gxf4 {[%clk 0:01:15.6]}
16... Bd8 {[%clk 0:01:13.7]} 17. Qxa8 {[%clk 0:01:11.9]} 1-0

[Event "Late-Titled-Tuesday-Blitz-March-05-2024"]
[Site "Chess.com"]
[Date "2024.03.05"]
[Round "8"]
[White "dosto07"]
[Black "Jahonas"]
[Result "1-0"]
[WhiteElo "2513"]
[BlackElo "2381"]
[TimeControl "180+1"]
[EndTime "15:22:28 PST"]
[Termination "dosto07 won by resignation"]

1. e4 {[%clk 0:03:00.9]} 1... c6 {[%clk 0:02:55.3]} 2. d4 {[%clk 0:03:00.5]}
2... d5 {[%clk 0:02:53.4]} 3. Nc3 {[%clk 0:03:01.4]} 3... dxe4 {[%clk
0:02:53.3]} 4. Nxe4 {[%clk 0:03:02.1]} 4... Bf5 {[%clk 0:02:53.2]} 5. Ng3 {[%clk
0:03:02.1]} 5... Bg6 {[%clk 0:02:52.7]} 6. h4 {[%clk 0:03:03]} 6... h6 {[%clk
0:02:52.5]} 7. Nf3 {[%clk 0:03:03.3]} 7... Nd7 {[%clk 0:02:52.5]} 8. h5 {[%clk
0:03:03.9]} 8... Bh7 {[%clk 0:02:52.4]} 9. Bd3 {[%clk 0:03:04.5]} 9... Bxd3
{[%clk 0:02:51.7]} 10. Qxd3 {[%clk 0:03:05.3]} 10... Ngf6 {[%clk 0:02:51.2]} 11.
Bd2 {[%clk 0:03:05.8]} 11... e6 {[%clk 0:02:51.2]} 12. O-O-O {[%clk 0:03:06.1]}
12... Qc7 {[%clk 0:02:51.2]} 13. Ne4 {[%clk 0:03:05.9]} 13... Nxe4 {[%clk
0:02:50.8]} 14. Qxe4 {[%clk 0:03:05.8]} 14... Nf6 {[%clk 0:02:44.2]} 15. Qe2
{[%clk 0:03:05.6]} 15... O-O-O {[%clk 0:02:42.9]} 16. c4 {[%clk 0:03:03.1]}
16... c5 {[%clk 0:02:38.7]} 17. Bc3 {[%clk 0:03:02.4]} 17... a6 {[%clk
0:02:22.7]} 18. Kb1 {[%clk 0:03:01.6]} 18... cxd4 {[%clk 0:02:20.6]} 19. Bxd4
{[%clk 0:03:01.5]} 19... Bc5 {[%clk 0:02:20.4]} 20. Bxc5 {[%clk 0:03:01.6]}
20... Qxc5 {[%clk 0:02:19.6]} 21. Ne5 {[%clk 0:03:02.5]} 21... Qe7 {[%clk
0:02:13.5]} 22. a3 {[%clk 0:02:58.1]} 22... Rxd1+ {[%clk 0:02:08.7]} 23. Rxd1
{[%clk 0:02:57.2]} 23... Rd8 {[%clk 0:02:08.6]} 24. Rxd8+ {[%clk 0:02:53.3]}
24... Kxd8 {[%clk 0:02:07.9]} 25. f4 {[%clk 0:02:49.5]} 25... Ke8 {[%clk
0:02:05.9]} 26. Qf3 {[%clk 0:02:45.5]} 26... Qc7 {[%clk 0:01:57.2]} 27. g4
{[%clk 0:02:43.7]} 27... Nd7 {[%clk 0:01:56.3]} 28. Nxd7 {[%clk 0:02:41.1]}
28... Qxd7 {[%clk 0:01:55.4]} 29. Ka2 {[%clk 0:02:36.7]} 29... f6 {[%clk
0:01:51.9]} 30. Qe4 {[%clk 0:02:35]} 30... Qc6 {[%clk 0:01:47.3]} 31. Qxc6+
{[%clk 0:02:24.6]} 31... bxc6 {[%clk 0:01:47.2]} 32. b4 {[%clk 0:02:25.5]} 32...
Kf7 {[%clk 0:01:43.8]} 33. Kb3 {[%clk 0:02:25.5]} 33... g6 {[%clk 0:01:43.4]}
34. hxg6+ {[%clk 0:02:23.6]} 34... Kxg6 {[%clk 0:01:43.2]} 35. a4 {[%clk
0:02:16.7]} 35... f5 {[%clk 0:01:09.9]} 36. gxf5+ {[%clk 0:02:15.3]} 36... Kxf5
{[%clk 0:01:09.8]} 37. b5 {[%clk 0:02:15.6]} 37... h5 {[%clk 0:01:03.3]} 38.
bxc6 {[%clk 0:02:02.8]} 38... h4 {[%clk 0:01:01.6]} 39. c7 {[%clk 0:02:02.8]}
39... h3 {[%clk 0:01:02.2]} 40. c8=Q {[%clk 0:02:03]} 1-0

[Event "Late-Titled-Tuesday-Blitz-March-05-2024"]
[Site "Chess.com"]
[Date "2024.03.05"]
[Round "8"]
[White "Vse_po_kaify"]
[Black "Zavgorodniy_Sergiy"]
[Result "0-1"]
[WhiteElo "2420"]
[BlackElo "2626"]
[TimeControl "180+1"]
[EndTime "15:22:43 PST"]
[Termination "Zavgorodniy_Sergiy won on time"]

1. Nf3 {[%clk 0:03:00.9]} 1... d5 {[%clk 0:02:59.6]} 2. e3 {[%clk 0:03:01.2]}
2... Nf6 {[%clk 0:02:59.4]} 3. c4 {[%clk 0:03:01.7]} 3... e6 {[%clk 0:02:59.5]}
4. b3 {[%clk 0:03:02.3]} 4... Be7 {[%clk 0:02:59.2]} 5. Bb2 {[%clk 0:03:00.5]}
5... O-O {[%clk 0:02:59.7]} 6. Nc3 {[%clk 0:02:53.4]} 6... b6 {[%clk 0:02:59.9]}
7. Qc2 {[%clk 0:02:27.4]} 7... Bb7 {[%clk 0:02:59.9]} 8. Ng5 {[%clk 0:02:22]}
8... h6 {[%clk 0:02:55.4]} 9. h4 {[%clk 0:02:19.8]} 9... Nbd7 {[%clk 0:02:52.3]}
10. Nf3 {[%clk 0:01:39.6]} 10... c5 {[%clk 0:02:51.2]} 11. cxd5 {[%clk
0:01:38.3]} 11... Nxd5 {[%clk 0:02:49.1]} 12. Ng5 {[%clk 0:01:27.9]} 12... Bxg5
{[%clk 0:02:46.1]} 13. hxg5 {[%clk 0:01:28]} 13... Qxg5 {[%clk 0:02:46.1]} 14.
Ne4 {[%clk 0:01:26.2]} 14... Qg6 {[%clk 0:02:44.2]} 15. Qb1 {[%clk 0:01:07]}
15... Nxe3 {[%clk 0:02:41.9]} 16. Bd3 {[%clk 0:00:55.5]} 16... Qxg2 {[%clk
0:02:31.2]} 17. Ng3 {[%clk 0:00:35.7]} 17... Ng4 {[%clk 0:02:18.2]} 18. Rf1
{[%clk 0:00:17.9]} 18... Nxf2 {[%clk 0:02:16.8]} 19. Rxf2 {[%clk 0:00:16.7]}
19... Qxg3 {[%clk 0:02:15.8]} 20. Ke2 {[%clk 0:00:09]} 20... Ne5 {[%clk
0:02:10.8]} 0-1

[Event "Late-Titled-Tuesday-Blitz-March-05-2024"]
[Site "Chess.com"]
[Date "2024.03.05"]
[Round "8"]
[White "Binary010"]
[Black "flubs"]
[Result "0-1"]
[WhiteElo "2779"]
[BlackElo "2461"]
[TimeControl "180+1"]
[EndTime "15:22:49 PST"]
[Termination "flubs won by resignation"]

1. d4 {[%clk 0:03:00.9]} 1... d5 {[%clk 0:02:58.4]} 2. c4 {[%clk 0:03:00.9]}
2... Nc6 {[%clk 0:02:58]} 3. cxd5 {[%clk 0:02:58.5]} 3... Qxd5 {[%clk
0:02:56.7]} 4. e3 {[%clk 0:02:57.1]} 4... e5 {[%clk 0:02:56.3]} 5. Nc3 {[%clk
0:02:57.3]} 5... Bb4 {[%clk 0:02:55.9]} 6. Bd2 {[%clk 0:02:57.7]} 6... Bxc3
{[%clk 0:02:55.3]} 7. bxc3 {[%clk 0:02:58]} 7... Qd6 {[%clk 0:02:55]} 8. Qc2
{[%clk 0:02:51.4]} 8... Nf6 {[%clk 0:02:52.4]} 9. Bd3 {[%clk 0:02:45.7]} 9...
O-O {[%clk 0:02:50.7]} 10. Ne2 {[%clk 0:02:45.7]} 10... Re8 {[%clk 0:02:48.6]}
11. O-O {[%clk 0:02:41.7]} 11... e4 {[%clk 0:02:40.4]} 12. Bb5 {[%clk
0:02:41.9]} 12... a6 {[%clk 0:02:39.5]} 13. Bxc6 {[%clk 0:02:33.6]} 13... Qxc6
{[%clk 0:02:38.7]} 14. c4 {[%clk 0:02:33.3]} 14... Bg4 {[%clk 0:02:24.3]} 15. d5
{[%clk 0:02:24]} 15... Qc5 {[%clk 0:02:14.1]} 16. Nd4 {[%clk 0:02:24.2]} 16...
b5 {[%clk 0:02:13.4]} 17. cxb5 {[%clk 0:02:00.7]} 17... Qxc2 {[%clk 0:02:11.4]}
18. Nxc2 {[%clk 0:02:01.6]} 18... axb5 {[%clk 0:02:11.3]} 19. h3 {[%clk
0:01:57.1]} 19... Be2 {[%clk 0:02:03.9]} 20. Rfc1 {[%clk 0:01:52.9]} 20... Nxd5
{[%clk 0:01:55.9]} 21. Nd4 {[%clk 0:01:53]} 21... Bc4 {[%clk 0:01:55.3]} 22. a4
{[%clk 0:01:53]} 22... Bd3 {[%clk 0:00:53.3]} 23. axb5 {[%clk 0:01:48.3]} 23...
g6 {[%clk 0:00:52]} 24. Rxa8 {[%clk 0:01:40.1]} 24... Rxa8 {[%clk 0:00:52.9]}
25. Rc5 {[%clk 0:01:40.2]} 25... Rd8 {[%clk 0:00:38.9]} 26. Ne6 {[%clk
0:01:39.4]} 26... fxe6 {[%clk 0:00:35.9]} 0-1

[Event "Late-Titled-Tuesday-Blitz-March-05-2024"]
[Site "Chess.com"]
[Date "2024.03.05"]
[Round "8"]
[White "Sandstad"]
[Black "northridgehawk"]
[Result "1/2-1/2"]
[WhiteElo "2459"]
[BlackElo "2337"]
[TimeControl "180+1"]
[EndTime "15:22:50 PST"]
[Termination "Game drawn by repetition"]

1. e4 {[%clk 0:03:00.9]} 1... e5 {[%clk 0:02:59.5]} 2. Nf3 {[%clk 0:03:00.5]}
2... Nc6 {[%clk 0:02:59.6]} 3. Bc4 {[%clk 0:03:01]} 3... Nf6 {[%clk 0:03:00]} 4.
Ng5 {[%clk 0:03:01.4]} 4... d5 {[%clk 0:02:59.9]} 5. exd5 {[%clk 0:03:02.3]}
5... Na5 {[%clk 0:03:00.7]} 6. Bb5+ {[%clk 0:03:02.6]} 6... Bd7 {[%clk
0:02:59.2]} 7. Qe2 {[%clk 0:03:01.4]} 7... Bd6 {[%clk 0:02:59.9]} 8. Nf3 {[%clk
0:02:55.2]} 8... O-O {[%clk 0:02:59.8]} 9. Bxd7 {[%clk 0:02:38.1]} 9... Qxd7
{[%clk 0:02:58.2]} 10. Nc3 {[%clk 0:02:37.9]} 10... Rfe8 {[%clk 0:02:58]} 11. d3
{[%clk 0:02:36]} 11... c6 {[%clk 0:02:57.3]} 12. dxc6 {[%clk 0:02:34.8]} 12...
Nxc6 {[%clk 0:02:58.2]} 13. Be3 {[%clk 0:02:34.3]} 13... Rad8 {[%clk 0:02:57.2]}
14. O-O {[%clk 0:02:25.4]} 14... Nd4 {[%clk 0:02:57]} 15. Bxd4 {[%clk
0:02:23.5]} 15... exd4 {[%clk 0:02:57]} 16. Ne4 {[%clk 0:02:24.2]} 16... Qf5
{[%clk 0:02:54.2]} 17. Rfe1 {[%clk 0:02:13.9]} 17... Nxe4 {[%clk 0:02:47]} 18.
dxe4 {[%clk 0:02:14.8]} 18... Qf4 {[%clk 0:02:42.9]} 19. g3 {[%clk 0:02:05.2]}
19... Qh6 {[%clk 0:02:42]} 20. Nxd4 {[%clk 0:01:42.3]} 20... Bxg3 {[%clk
0:02:33.7]} 21. hxg3 {[%clk 0:01:43.2]} 21... Rxd4 {[%clk 0:02:33.5]} 22. Rad1
{[%clk 0:01:43]} 22... Qd6 {[%clk 0:02:26]} 23. c3 {[%clk 0:01:34.9]} 23... Rxd1
{[%clk 0:02:22.1]} 24. Rxd1 {[%clk 0:01:35.8]} 24... Qe6 {[%clk 0:02:22.1]} 25.
b3 {[%clk 0:01:31.1]} 25... h6 {[%clk 0:02:19.7]} 26. Rd4 {[%clk 0:01:30.1]}
26... f5 {[%clk 0:02:17.4]} 27. Qc4 {[%clk 0:01:22.9]} 27... Qxc4 {[%clk
0:02:13.3]} 28. Rxc4 {[%clk 0:01:23.8]} 28... fxe4 {[%clk 0:02:11.9]} 29. Kf1
{[%clk 0:01:15]} 29... Re7 {[%clk 0:02:10.7]} 30. Ke2 {[%clk 0:01:14.6]} 30...
Kf7 {[%clk 0:02:05]} 31. Ke3 {[%clk 0:01:14.8]} 31... Kf6 {[%clk 0:02:05]} 32.
Rxe4 {[%clk 0:01:14.3]} 32... Rc7 {[%clk 0:02:05.2]} 33. c4 {[%clk 0:01:13.9]}
33... Rc6 {[%clk 0:02:05.3]} 34. b4 {[%clk 0:01:10.7]} 34... Ra6 {[%clk
0:02:05.4]} 35. Rf4+ {[%clk 0:01:07.9]} 35... Ke6 {[%clk 0:02:03.5]} 36. Re4+
{[%clk 0:00:59.6]} 36... Kf6 {[%clk 0:02:03.3]} 37. Rf4+ {[%clk 0:00:59.7]}
37... Ke6 {[%clk 0:01:59.4]} 38. Re4+ {[%clk 0:00:58]} 38... Kf6 {[%clk
0:01:49.6]} 1/2-1/2

[Event "Late-Titled-Tuesday-Blitz-March-05-2024"]
[Site "Chess.com"]
[Date "2024.03.05"]
[Round "8"]
[White "LUISMIGUELOV"]
[Black "Veleamater"]
[Result "0-1"]
[WhiteElo "2163"]
[BlackElo "2327"]
[TimeControl "180+1"]
[EndTime "15:23:06 PST"]
[Termination "Veleamater won by resignation"]

1. e4 {[%clk 0:03:00.9]} 1... d6 {[%clk 0:03:00.9]} 2. Bc4 {[%clk 0:03:00.4]}
2... g6 {[%clk 0:03:01.8]} 3. c3 {[%clk 0:02:59.4]} 3... Nc6 {[%clk 0:03:00.3]}
4. d4 {[%clk 0:02:58.4]} 4... Bg7 {[%clk 0:03:00.6]} 5. f4 {[%clk 0:02:56.1]}
5... Nf6 {[%clk 0:03:00.6]} 6. Qe2 {[%clk 0:02:52.3]} 6... O-O {[%clk
0:03:00.4]} 7. Nf3 {[%clk 0:02:51.5]} 7... e5 {[%clk 0:03:00.2]} 8. fxe5 {[%clk
0:02:49.9]} 8... dxe5 {[%clk 0:03:00.1]} 9. d5 {[%clk 0:02:50]} 9... Ne7 {[%clk
0:03:00.1]} 10. O-O {[%clk 0:02:43.9]} 10... Ne8 {[%clk 0:03:00.1]} 11. Bg5
{[%clk 0:02:41]} 11... Nd6 {[%clk 0:02:58.8]} 12. Bd3 {[%clk 0:02:36.7]} 12...
h6 {[%clk 0:02:58]} 13. Bxe7 {[%clk 0:02:33.5]} 13... Qxe7 {[%clk 0:02:57.8]}
14. Nbd2 {[%clk 0:02:33.6]} 14... f5 {[%clk 0:02:56]} 15. c4 {[%clk 0:02:30.2]}
15... Kh7 {[%clk 0:02:54]} 16. Rac1 {[%clk 0:02:25.9]} 16... a6 {[%clk
0:02:52.2]} 17. c5 {[%clk 0:02:24.7]} 17... Nf7 {[%clk 0:02:52.1]} 18. b4 {[%clk
0:02:21.6]} 18... Bd7 {[%clk 0:02:51.3]} 19. a3 {[%clk 0:02:15.8]} 19... f4
{[%clk 0:02:39.6]} 20. Nc4 {[%clk 0:02:10.2]} 20... Rad8 {[%clk 0:02:33.8]} 21.
Rcd1 {[%clk 0:02:08.4]} 21... g5 {[%clk 0:02:33.4]} 22. d6 {[%clk 0:01:50.9]}
22... cxd6 {[%clk 0:02:32.1]} 23. cxd6 {[%clk 0:01:49.7]} 23... Nxd6 {[%clk
0:02:31]} 24. Nxd6 {[%clk 0:01:35.5]} 24... Qxd6 {[%clk 0:02:31.3]} 25. Bc4
{[%clk 0:01:35.3]} 25... Qe7 {[%clk 0:02:29.7]} 26. Bd5 {[%clk 0:01:32.3]} 26...
g4 {[%clk 0:02:23.2]} 27. Nd2 {[%clk 0:01:27.8]} 27... Ba4 {[%clk 0:02:17.3]}
28. Rc1 {[%clk 0:01:23.2]} 28... Qg5 {[%clk 0:02:16.1]} 29. Rc7 {[%clk 0:01:15]}
29... Bb5 {[%clk 0:02:15.7]} 30. Bc4 {[%clk 0:01:10.7]} 30... f3 {[%clk
0:02:15.9]} 31. Nxf3 {[%clk 0:00:56.4]} 31... gxf3 {[%clk 0:02:15]} 32. Rxf3
{[%clk 0:00:56.3]} 32... Bxc4 {[%clk 0:02:10.3]} 33. Qxc4 {[%clk 0:00:21.3]}
33... Rxf3 {[%clk 0:02:05.7]} 34. Rxg7+ {[%clk 0:00:21.8]} 34... Qxg7 {[%clk
0:02:01.8]} 0-1

[Event "Late-Titled-Tuesday-Blitz-March-05-2024"]
[Site "Chess.com"]
[Date "2024.03.05"]
[Round "8"]
[White "PawnEatingZombie"]
[Black "aranibos"]
[Result "0-1"]
[WhiteElo "2161"]
[BlackElo "2272"]
[TimeControl "180+1"]
[EndTime "15:23:12 PST"]
[Termination "aranibos won by resignation"]

1. e4 {[%clk 0:03:00.9]} 1... c6 {[%clk 0:02:59.2]} 2. Nf3 {[%clk 0:03:00.3]}
2... d5 {[%clk 0:02:59.2]} 3. d3 {[%clk 0:03:00.8]} 3... dxe4 {[%clk 0:02:57.9]}
4. dxe4 {[%clk 0:03:01.7]} 4... Qxd1+ {[%clk 0:02:57]} 5. Kxd1 {[%clk
0:03:02.6]} 5... Bg4 {[%clk 0:02:56.1]} 6. Be2 {[%clk 0:03:02.8]} 6... Nd7
{[%clk 0:02:53.8]} 7. Ne1 {[%clk 0:03:03.2]} 7... Bxe2+ {[%clk 0:02:52.5]} 8.
Kxe2 {[%clk 0:03:04.1]} 8... O-O-O {[%clk 0:02:52.1]} 9. Nd3 {[%clk 0:03:01.8]}
9... e5 {[%clk 0:02:51.8]} 10. Be3 {[%clk 0:02:52.7]} 10... Ngf6 {[%clk
0:02:49.1]} 11. f3 {[%clk 0:02:52.5]} 11... b6 {[%clk 0:02:47.9]} 12. a4 {[%clk
0:02:52.8]} 12... a5 {[%clk 0:02:45.2]} 13. Nd2 {[%clk 0:02:49.1]} 13... Kc7
{[%clk 0:02:42.3]} 14. Rhd1 {[%clk 0:02:42.7]} 14... Be7 {[%clk 0:02:30.4]} 15.
c3 {[%clk 0:02:42.8]} 15... Rhe8 {[%clk 0:02:23.2]} 16. b4 {[%clk 0:02:38.9]}
16... axb4 {[%clk 0:02:19.6]} 17. cxb4 {[%clk 0:02:37.5]} 17... Ra8 {[%clk
0:02:12.9]} 18. Rdc1 {[%clk 0:02:34]} 18... Kb7 {[%clk 0:02:13.1]} 19. Nc4
{[%clk 0:02:27.6]} 19... Bf8 {[%clk 0:02:10.8]} 20. a5 {[%clk 0:02:20.4]} 20...
b5 {[%clk 0:02:09.6]} 21. Nd2 {[%clk 0:02:07.5]} 21... h6 {[%clk 0:02:03.4]} 22.
Nb3 {[%clk 0:02:07]} 22... g5 {[%clk 0:01:55.5]} 23. g4 {[%clk 0:02:04.6]} 23...
Bd6 {[%clk 0:01:49.9]} 24. Rc2 {[%clk 0:02:00.4]} 24... Rec8 {[%clk 0:01:48.3]}
25. Rac1 {[%clk 0:01:59.9]} 25... Ne8 {[%clk 0:01:43.1]} 26. Rh1 {[%clk
0:01:35.1]} 26... Be7 {[%clk 0:01:36.9]} 27. h4 {[%clk 0:01:31.2]} 27... gxh4
{[%clk 0:01:35.3]} 28. Bxh6 {[%clk 0:01:31.4]} 28... Nc7 {[%clk 0:01:30.3]} 29.
g5 {[%clk 0:01:16.4]} 29... Ne6 {[%clk 0:01:29.5]} 30. Rxh4 {[%clk 0:01:09.4]}
30... c5 {[%clk 0:01:22.2]} 31. bxc5 {[%clk 0:01:02.5]} 31... Ndxc5 {[%clk
0:01:21.9]} 32. Nbxc5+ {[%clk 0:00:59.4]} 32... Bxc5 {[%clk 0:01:20.9]} 33. Nxe5
{[%clk 0:00:56.2]} 33... Nd4+ {[%clk 0:01:20.3]} 0-1